bitfinex-derivatives/quotes_BTCF0:USTF0_20251215
["timestamp","ask_amount","ask_price","bid_price","bid_amount"]
[1765831634726,1.40447,85874.0,85873.0,0.00010162]
[1765831635714,1.40047,85874.0,85873.0,0.00010162]
[1765831636412,1.40147,85874.0,85873.0,0.00010162]
[1765831637326,1.40147,85874.0,85858.0,0.00232944]
[1765831637327,0.67843,85859.0,85858.0,0.66527944]
[1765831637511,1.40855,85859.0,85858.0,0.33652944]
[1765831637717,1.40855,85859.0,85858.0,0.00232944]
[1765831638212,1.40865356,85859.0,85858.0,0.66527944]
[1765831638422,1.40865356,85859.0,85858.0,0.66627944]
[1765831638711,1.40865356,85859.0,85858.0,0.66827944]
[1765831639417,1.40965356,85859.0,85858.0,0.66627944]
[1765831639924,1.41065356,85859.0,85858.0,0.66527944]
[1765831640719,1.41065356,85859.0,85858.0,0.33652944]
[1765831640926,1.41065356,85859.0,85858.0,0.66527944]
[1765831644128,1.05863356,85859.0,85858.0,0.66527944]
[1765831644320,0.32827356,85859.0,85858.0,0.66527944]
[1765831644523,0.97877356,85859.0,85858.0,0.66527944]
[1765831644721,0.99042186,85859.0,85858.0,0.33652944]
[1765831644924,0.97877356,85859.0,85858.0,0.33652944]
[1765831645433,0.97877356,85859.0,85858.0,0.00232944]
[1765831646440,0.97777356,85859.0,85858.0,0.00232944]
[1765831647239,0.97877356,85859.0,85858.0,0.00232944]
[1765831647635,0.67843,85842.0,85841.0,0.67527493]
[1765831647832,0.67843,85842.0,85841.0,0.66295]
[1765831648138,0.7304,85847.0,85846.0,0.66295]
[1765831648545,0.67953356,85859.0,85858.0,0.66295]
[1765831648735,1.06371356,85859.0,85858.0,0.66295]
[1765831649239,1.05771356,85859.0,85858.0,0.66295]
[1765831649542,1.06071356,85859.0,85858.0,0.66295]
[1765831649939,0.0116464,85874.0,85866.0,0.66295]
[1765831650146,0.32634463,85867.0,85866.0,0.66295]
[1765831650846,0.0002778,85867.0,85866.0,0.66295]
[1765831651048,0.0042778,85867.0,85866.0,0.66295]
[1765831651543,0.6763578,85867.0,85866.0,0.66295]
[1765831652747,0.3405278,85867.0,85866.0,0.66295]
[1765831653135,0.0112778,85867.0,85866.0,0.66295]
[1765831657248,0.6999678,85867.0,85866.0,0.66295]
[1765831657443,0.6999678,85867.0,85856.0,0.19667]
[1765831657444,0.7003379,85863.0,85862.0,0.67422]
[1765831658446,0.7033379,85863.0,85862.0,0.67422]
[1765831658644,0.7093379,85863.0,85862.0,0.67422]
[1765831659152,0.68869,85857.0,85856.0,0.67422]
[1765831660046,0.68869,85857.0,85856.0,0.88467]
[1765831660249,0.69769,85863.0,85862.0,0.67422]
[1765831660446,0.33928,85863.0,85862.0,0.67422]
[1765831660645,0.33328,85863.0,85862.0,0.67422]
[1765831660850,0.003,85863.0,85862.0,0.67422]
[1765831661352,0.0002778,85867.0,85866.0,0.6858674]
[1765831662453,0.68869,85889.0,85888.0,0.21045]
[1765831662752,0.68869,85889.0,85888.0,0.88467]
[1765831662753,1.41913,85889.0,85888.0,0.88467]
[1765831663452,1.41913,85889.0,85885.0,0.67422]
[1765831663453,0.7003348,85886.0,85885.0,0.67422]
[1765831663647,0.68869,85886.0,85885.0,0.67422]
[1765831663846,0.73050644,85889.0,85888.0,0.67422]
[1765831664154,6.644e-05,85889.0,85888.0,0.67422]
[1765831664554,0.00206644,85889.0,85888.0,0.67422]
[1765831665051,0.00606644,85889.0,85888.0,0.67422]
[1765831665252,0.00406644,85889.0,85888.0,0.67422]
[1765831665454,0.00506644,85889.0,85888.0,0.67422]
[1765831665641,0.00406644,85889.0,85888.0,0.67422]
[1765831666048,0.00306644,85889.0,85888.0,0.67422]
[1765831666244,0.00406644,85889.0,85888.0,0.67422]
[1765831668753,0.69275644,85889.0,85888.0,0.67422]
[1765831669150,0.69175644,85889.0,85888.0,0.67422]
[1765831669355,0.69275644,85889.0,85888.0,0.67422]
[1765831669954,0.68869,85881.0,85880.0,0.88484474]
[1765831670662,0.68869,85881.0,85880.0,0.67439474]
[1765831671764,0.69069,85881.0,85880.0,0.67439474]
[1765831672354,0.69169,85881.0,85880.0,0.67439474]
[1765831673250,0.003,85881.0,85880.0,0.67439474]
[1765831674050,0.004,85881.0,85880.0,0.67439474]
[1765831674953,6.644e-05,85889.0,85888.0,0.88467]
[1765831675371,0.41424,85903.0,85896.0,0.88467]
[1765831676455,1.05713,85917.0,85914.0,0.21045]
[1765831676668,0.3419232,85897.0,85896.0,0.88467]
[1765831676857,0.68869,85897.0,85896.0,0.88467]
[1765831677464,0.33028,85897.0,85896.0,0.88467]
[1765831677654,0.7003323,85904.0,85903.0,0.67422]
[1765831678161,0.00017464,85905.0,85896.0,0.21045]
[1765831678162,0.01181684,85905.0,85904.0,0.67422]
[1765831678558,0.34209684,85905.0,85904.0,0.67422]
[1765831678766,0.70050684,85905.0,85904.0,0.67422]
[1765831680465,0.69086464,85905.0,85904.0,0.67422]
[1765831680669,0.33245464,85905.0,85904.0,0.67422]
[1765831680871,0.00617464,85905.0,85904.0,0.67422]
[1765831681169,0.33445464,85905.0,85904.0,0.88467]
[1765831681370,0.33645464,85905.0,85904.0,0.88467]
[1765831681672,0.69486464,85905.0,85904.0,0.88467]
[1765831681967,0.00417464,85905.0,85904.0,0.88467]
[1765831682162,0.00300464,85905.0,85904.0,0.88467]
[1765831682364,4.64e-06,85905.0,85904.0,0.88467]
[1765831682965,0.00400464,85905.0,85904.0,0.88467]
[1765831683267,4.64e-06,85913.0,85912.0,0.6816012]
[1765831683670,0.7302,85930.0,85929.0,0.66996]
[1765831684167,0.7302,85930.0,85929.0,2.16996]
[1765831684568,0.7418387,85930.0,85929.0,2.16996]
[1765831684763,1.1003987,85930.0,85929.0,2.16996]
[1765831684970,0.7418387,85930.0,85929.0,2.16996]
[1765831685169,0.7438387,85930.0,85929.0,2.16996]
[1765831685365,0.7438387,85930.0,85929.0,2.18229799]
[1765831686173,1.4461587,85930.0,85929.0,1.5]
[1765831686671,0.70232,85922.0,85921.0,0.00017464]
[1765831686872,0.7428387,85930.0,85926.0,0.66996]
[1765831686873,0.70232,85927.0,85926.0,0.66996]
[1765831687071,0.7312,85930.0,85929.0,0.66996]
[1765831687282,0.001,85930.0,85929.0,0.66996]
[1765831687474,0.002,85930.0,85929.0,0.66996]
[1765831687879,0.001,85930.0,85929.0,0.66996]
[1765831688476,0.73012,85932.0,85931.0,0.66996]
[1765831689970,1.08868,85932.0,85931.0,0.66996]
[1765831690880,1.09068,85932.0,85931.0,0.66996]
[1765831691073,0.73212,85932.0,85931.0,0.66996]
[1765831691376,0.7427585,85932.0,85931.0,0.66996]
[1765831691578,1.1023185,85932.0,85931.0,0.66996]
[1765831691774,0.73212,85932.0,85931.0,0.66996]
[1765831693273,0.73112,85932.0,85931.0,0.66996]
[1765831693879,1.08968,85932.0,85931.0,0.66996]
[1765831694073,0.73112,85932.0,85931.0,0.66996]
[1765831694801,0.00250191,85938.0,85937.0,0.66996]
[1765831695681,0.00250191,85938.0,85937.0,0.6815978]
[1765831695881,1.91e-06,85938.0,85937.0,0.66996]
[1765831697469,0.0116372,85942.0,85941.0,0.86506]
[1765831697671,0.011637,85944.0,85941.0,0.1951]
[1765831697875,0.0116365,85947.0,85946.0,0.66996]
[1765831698074,0.54952,85949.0,85948.0,0.66996]
[1765831698883,0.90808,85949.0,85948.0,0.66996]
[1765831699688,0.54952,85949.0,85948.0,0.66996]
[1765831700186,0.00017453,85951.0,85950.0,0.86506]
[1765831701181,0.35873453,85951.0,85950.0,0.86506]
[1765831701577,0.00017453,85951.0,85950.0,0.86606]
[1765831701783,0.00017453,85951.0,85950.0,0.86706]
[1765831702987,0.00017453,85951.0,85950.0,0.86606]
[1765831703177,0.00117453,85951.0,85950.0,0.86706]
[1765831703577,0.00117453,85951.0,85950.0,0.86506]
[1765831703785,0.00117453,85951.0,85950.0,0.86606]
[1765831703991,0.00017453,85951.0,85950.0,0.86606]
[1765831706087,0.00017453,85951.0,85950.0,0.86706]
[1765831709585,0.00017453,85951.0,85950.0,0.878696]
[1765831709984,0.00017453,85951.0,85950.0,0.86706]
[1765831710294,0.7139528,85974.0,85973.0,0.66996]
[1765831710696,0.0116328,85974.0,85973.0,0.66996]
[1765831710896,0.01804,85976.0,85975.0,0.68093]
[1765831711097,0.0116306,85990.0,85973.0,0.01238519]
[1765831711098,0.0116306,85990.0,85977.0,0.68093]
[1765831711292,0.0116317,85982.0,85977.0,0.68093]
[1765831711484,0.0116317,85982.0,85981.0,0.68093]
[1765831711887,0.0116317,85982.0,85976.0,0.20913]
[1765831711888,0.7181824,85977.0,85976.0,0.67382]
[1765831712992,0.70855,85977.0,85976.0,0.67382]
[1765831713386,0.71155,85977.0,85976.0,0.67382]
[1765831714194,0.70655,85974.0,85973.0,0.34125519]
[1765831714397,0.70655,85974.0,85973.0,0.68620519]
[1765831715396,0.70655,85970.0,85969.0,0.32904453]
[1765831715594,0.7181833,85970.0,85969.0,0.00017453]
[1765831716490,0.7221833,85970.0,85969.0,0.00017453]
[1765831717193,0.70655,85961.0,85960.0,0.86892]
[1765831717706,0.70655,85961.0,85960.0,0.88125118]
[1765831717903,0.70655,85961.0,85960.0,0.32887]
[1765831718090,0.70655,85968.0,85967.0,0.34495]
[1765831718296,0.70655,85968.0,85967.0,0.67382]
[1765831718497,0.004,85970.0,85967.0,0.67382]
[1765831718698,0.004,85970.0,85960.0,0.8737]
[1765831718699,0.35085,85961.0,85960.0,0.8737]
[1765831718897,0.70655,85961.0,85960.0,0.8737]
[1765831719093,0.001,85961.0,85960.0,0.8737]
[1765831720502,0.35185,85961.0,85960.0,0.8737]
[1765831720809,0.70755,85961.0,85960.0,0.8737]
[1765831721307,0.001,85961.0,85960.0,0.8737]
[1765831721511,0.35185,85961.0,85960.0,0.8737]
[1765831721806,0.70755,85961.0,85960.0,0.8737]
[1765831722411,0.70755,85961.0,85952.0,0.22164056]
[1765831722412,0.7181856,85953.0,85952.0,0.89546056]
[1765831723705,0.7181856,85953.0,85952.0,0.89646056]
[1765831724306,0.7181856,85953.0,85952.0,0.00117453]
[1765831725199,0.7181872,85941.0,85940.0,0.71534355]
[1765831725402,0.70655,85941.0,85940.0,0.71534355]
[1765831725602,0.70655,85941.0,85940.0,0.67382]
[1765831725801,0.70655,85941.0,85940.0,0.71563778]
[1765831726396,0.70655,85941.0,85940.0,0.72771846]
[1765831726703,0.70655,85941.0,85940.0,0.72872711]
[1765831727302,0.70655,85941.0,85940.0,0.68690068]
[1765831728203,0.70655,85941.0,85940.0,0.72874024]
[1765831728404,0.70655,85941.0,85940.0,0.68690068]
[1765831729117,0.70755,85941.0,85940.0,0.72774024]
[1765831730515,0.70655,85939.0,85938.0,0.04416683]
[1765831730714,0.70655,85939.0,85938.0,0.67614727]
[1765831731112,0.17665,85952.0,85938.0,0.67614727]
[1765831731113,0.7181865,85947.0,85946.0,0.67382]
[1765831732114,0.70655,85947.0,85946.0,0.67382]
[1765831733510,0.70755,85947.0,85946.0,0.67382]
[1765831734313,0.70655,85947.0,85946.0,0.67382]
[1765831735211,0.70855,85947.0,85946.0,0.67382]
[1765831736620,0.70655,85947.0,85946.0,0.67482]
[1765831737013,0.70755,85947.0,85946.0,0.67382]
[1765831737421,0.70855,85947.0,85946.0,0.67382]
[1765831737622,0.7201864,85947.0,85946.0,0.67382]
[1765831738617,0.70755,85947.0,85946.0,0.67382]
[1765831738819,0.35185,85947.0,85946.0,0.67382]
[1765831739315,0.35285,85947.0,85946.0,0.6854566]
[1765831739518,0.65848,85957.0,85956.0,0.67382]
[1765831740414,0.7181821,85979.0,85978.0,0.67382]
[1765831740821,0.70655,85979.0,85978.0,0.67382]
[1765831741322,0.41307138,85991.0,85990.0,0.67382]
[1765831741517,0.7181813,85985.0,85984.0,0.8737]
[1765831741713,0.7181813,85985.0,85984.0,0.67382]
[1765831742120,0.7181813,85985.0,85984.0,0.87495]
[1765831742328,0.70655,85985.0,85984.0,0.88697823]
[1765831742727,0.71475,85989.0,85988.0,0.67313]
[1765831742922,0.95734,85992.0,85991.0,0.67313]
[1765831743321,0.59852,85992.0,85991.0,0.67313]
[1765831743630,1.3249003,85992.0,85991.0,0.67313]
[1765831744026,0.7263813,85985.0,85984.0,0.88628823]
[1765831745622,0.71475,85983.0,85982.0,0.00017453]
[1765831746324,0.35882,85961.0,85960.0,0.87301]
[1765831746524,0.71475,85961.0,85960.0,0.87301]
[1765831746825,0.71475,85961.0,85960.0,0.88529383]
[1765831747338,0.71475,85961.0,85960.0,0.33945383]
[1765831747623,0.71475,85961.0,85960.0,0.68541383]
[1765831748026,0.71575,85961.0,85960.0,0.68541383]
[1765831748227,0.001,85961.0,85960.0,0.68541383]
[1765831748421,0.35982,85961.0,85960.0,0.68541383]
[1765831748729,0.71575,85961.0,85960.0,0.01228383]
[1765831748920,0.71475,85953.0,85952.0,0.87443453]
[1765831749122,0.71475,85953.0,85952.0,0.67330453]
[1765831749630,0.71475,85953.0,85952.0,0.68519352]
[1765831750227,0.71475,85953.0,85952.0,0.68619352]
[1765831751929,0.71475,85953.0,85952.0,0.34023352]
[1765831752133,0.71475,85953.0,85952.0,0.68619352]
[1765831752331,0.71475,85953.0,85952.0,0.68519352]
[1765831752634,1.36255,85960.0,85959.0,0.87426]
[1765831752821,1.36255,85960.0,85959.0,0.67313]
[1765831753323,1.36255,85960.0,85959.0,0.32717]
[1765831754126,1.36355,85960.0,85959.0,0.32717]
[1765831754930,0.7263856,85953.0,85952.0,0.01206352]
[1765831755429,0.7263866,85946.0,85945.0,0.04180526]
[1765831755637,0.7263866,85946.0,85945.0,0.01212776]
[1765831755835,0.7263866,85946.0,85943.0,0.04180526]
[1765831756029,0.71475,85939.0,85938.0,0.67545727]
[1765831756837,0.71475,85939.0,85938.0,0.68730828]
[1765831757036,0.35882,85939.0,85938.0,0.68830828]
[1765831757234,0.35882,85939.0,85938.0,0.75099261]
[1765831757441,0.35882,85939.0,85938.0,0.75099534]
[1765831757629,0.71475,85939.0,85938.0,0.75099534]
[1765831757938,0.71475,85939.0,85938.0,0.00332727]
[1765831758139,0.71475,85939.0,85938.0,0.04512059]
[1765831759336,0.71575,85939.0,85938.0,0.04512059]
[1765831759731,0.71575,85939.0,85938.0,0.00332727]
[1765831759930,0.71575,85939.0,85938.0,0.04512163]
[1765831760236,0.71675,85939.0,85938.0,0.04412163]
[1765831761143,0.71675,85939.0,85938.0,0.00232727]
[1765831761334,0.71675,85939.0,85938.0,0.37129163]
[1765831761537,0.71575,85939.0,85938.0,0.04412113]
[1765831762634,0.71675,85939.0,85938.0,0.00232727]
[1765831763137,0.71675,85939.0,85938.0,0.67545727]
[1765831763338,0.71675,85939.0,85938.0,0.00232727]
[1765831763649,0.7263876,85938.0,85937.0,0.04189118]
[1765831764141,0.7263876,85938.0,85937.0,0.00010022]
[1765831765240,0.7273876,85938.0,85937.0,0.00010022]
[1765831766449,0.7283876,85938.0,85937.0,0.00010022]
[1765831768845,0.7273876,85938.0,85937.0,0.00010022]
[1765831769145,0.7283876,85938.0,85937.0,0.00010022]
[1765831769532,0.7283876,85938.0,85937.0,0.32727022]
[1765831770242,0.7283876,85938.0,85937.0,0.00010022]
[1765831770644,0.7273876,85938.0,85937.0,0.00010022]
[1765831770846,0.7283876,85938.0,85937.0,0.00010022]
[1765831771044,0.71675,85938.0,85937.0,0.69864022]
[1765831771634,0.71575,85938.0,85937.0,0.69864022]
[1765831771839,0.71575,85938.0,85937.0,0.00010022]
[1765831772046,0.71675,85938.0,85937.0,0.00010022]
[1765831773147,0.71575,85938.0,85937.0,0.00010022]
[1765831773346,0.71675,85938.0,85937.0,0.00010022]
[1765831773546,0.71675,85938.0,85937.0,0.68919022]
[1765831773845,0.71675,85938.0,85937.0,0.00010022]
[1765831774048,0.71675,85938.0,85937.0,0.68919022]
[1765831774440,0.35982,85938.0,85937.0,0.68919022]
[1765831774642,0.36082,85938.0,85937.0,0.68919022]
[1765831775043,0.002,85938.0,85937.0,0.68919022]
[1765831775349,1.24284,85945.0,85944.0,0.68909]
[1765831775536,0.69092,85940.0,85939.0,0.89252]
[1765831775741,0.69092,85938.0,85937.0,0.00010022]
[1765831776746,0.69092,85931.0,85930.0,0.00017453]
[1765831777050,1.4321986,85931.0,85930.0,0.00017453]
[1765831777949,1.43229882,85931.0,85930.0,0.00017453]
[1765831778552,1.43329882,85931.0,85930.0,0.00017453]
[1765831778754,1.42166022,85931.0,85930.0,0.00017453]
[1765831782154,1.42166022,85931.0,85930.0,3e-08]
[1765831782353,0.69092,85909.0,85908.0,0.04179096]
[1765831782659,0.69092,85905.0,85903.0,0.06268706]
[1765831782956,0.69092,85904.0,85903.0,0.68909]
[1765831783156,0.69092,85904.0,85903.0,0.75177706]
[1765831783355,0.69092,85903.0,85901.0,0.06268706]
[1765831783561,0.68892,85899.0,85896.0,0.06268706]
[1765831783856,1.41464,85899.0,85895.0,0.00017453]
[1765831784052,1.41464,85899.0,85898.0,0.04411501]
[1765831784246,0.69092,85896.0,85895.0,0.00017453]
[1765831784450,0.68792,85896.0,85895.0,0.00017453]
[1765831784848,0.85761,85896.0,85895.0,0.00017453]
[1765831785157,0.68792,85896.0,85895.0,0.00017453]
[1765831785550,0.85761,85896.0,85895.0,0.00017453]
[1765831786056,0.68392,85896.0,85895.0,0.00017453]
[1765831786254,0.6955633,85896.0,85895.0,0.00017453]
[1765831786457,0.68492,85896.0,85895.0,0.00017453]
[1765831786849,0.68692,85896.0,85895.0,0.00017453]
[1765831788059,0.68692,85896.0,85895.0,0.68926453]
[1765831788259,0.68692,85896.0,85895.0,0.00017453]
[1765831788962,0.68692,85896.0,85895.0,0.33859453]
[1765831789151,0.68792,85896.0,85895.0,0.33859453]
[1765831789660,0.68592,85896.0,85895.0,0.68926453]
[1765831789847,0.68792,85896.0,85895.0,0.68926453]
[1765831790052,1.41576,85896.0,85895.0,0.68926453]
[1765831790462,1.41876,85896.0,85895.0,0.68926453]
[1765831791058,1.4188,85896.0,85895.0,0.68926453]
[1765831791358,0.73488,85896.0,85895.0,0.68926453]
[1765831791760,1.0807,85896.0,85895.0,0.68926453]
[1765831791958,1.0807,85896.0,85895.0,0.00017453]
[1765831792461,1.0807,85896.0,85895.0,0.33859453]
[1765831792651,1.24639,85896.0,85895.0,0.00017453]
[1765831793052,1.24539,85896.0,85895.0,0.00017453]
[1765831793248,1.2570333,85896.0,85895.0,0.00017453]
[1765831793761,1.2580333,85896.0,85895.0,0.00017453]
[1765831793955,0.8812541,85890.0,85889.0,8.762e-05]
[1765831794160,0.69092,85875.0,85874.0,0.01219963]
[1765831794366,0.69092,85873.0,85872.0,0.89252]
[1765831794756,0.69092,85873.0,85872.0,0.90434385]
[1765831795373,0.69092,85865.0,85864.0,0.89269464]
[1765831795572,1.42084,85865.0,85864.0,0.89269464]
[1765831796071,1.41984,85865.0,85864.0,0.89269464]
[1765831796254,1.41884,85865.0,85864.0,0.89269464]
[1765831796558,1.41884,85865.0,85864.0,0.89469464]
[1765831796761,1.41884,85865.0,85864.0,0.00217464]
[1765831797467,1.41884,85865.0,85864.0,0.00143693]
[1765831798164,1.41884,85865.0,85864.0,0.00343693]
[1765831799457,0.68892,85865.0,85864.0,0.34185693]
[1765831799663,1.32776,85865.0,85864.0,0.89595693]
[1765831800051,0.69104194,85873.0,85872.0,0.89252]
[1765831800264,0.69092,85865.0,85864.0,0.00343693]
[1765831800560,0.69092,85865.0,85864.0,0.89595693]
[1765831800766,0.69092,85865.0,85864.0,0.00343693]
[1765831801352,0.7015683,85859.0,85858.0,0.00232944]
[1765831801558,1.4318083,85859.0,85858.0,1e-08]
[1765831801763,1.8318083,85859.0,85858.0,1e-08]
[1765831801960,0.7095815,85836.0,85835.0,0.00012973]
[1765831802164,1.42621,85836.0,85835.0,0.00012973]
[1765831802467,1.42630861,85836.0,85835.0,0.00012973]
[1765831802858,9.861e-05,85836.0,85835.0,0.68725973]
[1765831803061,1.08514861,85836.0,85835.0,0.68725973]
[1765831803563,1.08514861,85836.0,85835.0,0.00012973]
[1765831803768,1.08914861,85836.0,85835.0,0.00012973]
[1765831804361,0.69793,85819.0,85806.0,0.0116554]
[1765831804562,1.42845,85819.0,85807.0,0.01192611]
[1765831804762,1.42845,85819.0,85804.0,0.0116557]
[1765831804961,0.35465,85819.0,85818.0,0.68946053]
[1765831805161,0.35688,85819.0,85818.0,0.68946053]
[1765831805364,0.02951849,85845.0,85818.0,0.68946053]
[1765831805365,0.70202861,85836.0,85835.0,0.68713]
[1765831805564,0.69793,85822.0,85821.0,0.6987835]
[1765831805763,0.35465,85822.0,85821.0,0.68713]
[1765831805964,0.69793,85822.0,85821.0,0.68713]
[1765831806268,0.69793,85819.0,85818.0,0.00233053]
[1765831807060,0.69793,85819.0,85818.0,0.68946053]
[1765831807267,0.00509861,85836.0,85835.0,0.68713]
[1765831807268,0.70302861,85836.0,85835.0,0.68713]
[1765831807470,1.43738861,85836.0,85835.0,0.68713]
[1765831808056,0.69793,85831.0,85830.0,0.88463]
[1765831808261,0.73645861,85836.0,85830.0,0.88463]
[1765831808564,0.73645861,85836.0,85835.0,0.68713]
[1765831809073,0.69793,85831.0,85820.0,0.1975]
[1765831809369,0.69793,85830.0,85829.0,0.68713]
[1765831809571,0.003,85831.0,85830.0,0.88463]
[1765831810671,1.43438861,85836.0,85835.0,0.68713]
[1765831810972,1.42938861,85836.0,85835.0,0.68713]
[1765831811271,0.73145861,85836.0,85830.0,0.1975]
[1765831811471,0.69793,85831.0,85830.0,0.88463]
[1765831811769,0.006,85831.0,85830.0,0.88463]
[1765831812473,0.73845861,85836.0,85835.0,0.68713]
[1765831813378,0.00709861,85836.0,85835.0,0.68713]
[1765831813961,9.861e-05,85836.0,85835.0,0.68713]
[1765831814161,0.00017475,85844.0,85843.0,0.6987805]
[1765831815174,0.00025789,85844.0,85843.0,0.6987805]
[1765831815369,0.00625789,85844.0,85843.0,0.6987805]
[1765831815567,0.01025789,85844.0,85843.0,0.6987805]
[1765831816379,1.46047,85879.0,85851.0,0.1975]
[1765831816564,0.7095777,85864.0,85863.0,0.68713]
[1765831816872,1.08609,85864.0,85863.0,0.68713]
[1765831817063,1.08609,85864.0,85863.0,0.69928101]
[1765831817376,0.69793,85873.0,85872.0,0.68713]
[1765831817674,0.69793,85873.0,85863.0,0.34376]
[1765831817675,0.69793,85864.0,85863.0,0.34376]
[1765831818058,0.69793,85861.0,85860.0,0.54126]
[1765831818263,0.69793,85861.0,85860.0,0.34376]
[1765831818463,0.69793,85856.0,85855.0,0.68730475]
[1765831820779,0.70970884,85856.0,85855.0,0.00017475]
[1765831821076,0.71670884,85856.0,85855.0,0.00017475]
[1765831821466,0.70506004,85856.0,85855.0,0.34393475]
[1765831821775,0.70506004,85856.0,85855.0,0.68730475]
[1765831821776,0.70106004,85856.0,85855.0,0.68730475]
[1765831821975,0.00513004,85856.0,85855.0,0.68730475]
[1765831823673,0.00413004,85856.0,85855.0,0.68730475]
[1765831824173,0.00213004,85856.0,85855.0,0.68730475]
[1765831824362,0.00313004,85856.0,85855.0,0.68730475]
[1765831824968,0.0116421,85906.0,85855.0,0.68730475]
[1765831824969,0.0116468,85871.0,85870.0,0.88463]
[1765831825170,0.35465,85871.0,85870.0,0.88463]
[1765831826170,0.38584,85874.0,85873.0,0.68713]
[1765831827077,1.08377,85874.0,85873.0,0.68713]
[1765831827475,1.08477,85874.0,85873.0,0.68713]
[1765831829678,1.08377,85874.0,85873.0,0.68713]
[1765831829882,1.0974163,85874.0,85873.0,0.68713]
[1765831830067,1.08677,85874.0,85873.0,0.68713]
[1765831830467,0.38684,85874.0,85873.0,0.68713]
[1765831830867,0.38784,85874.0,85873.0,0.68713]
[1765831831067,0.002,85874.0,85873.0,0.68713]
[1765831831270,0.00351,85879.0,85878.0,0.89962]
[1765831831471,0.00351,85879.0,85878.0,0.9112658]
[1765831831675,0.00017475,85881.0,85880.0,0.69411]
[1765831832976,0.2916,85889.0,85888.0,0.68354]
[1765831833188,0.0116441,85891.0,85890.0,0.68354]
[1765831833780,1.4686032,85897.0,85896.0,0.89395]
[1765831833980,1.45696,85897.0,85896.0,0.89395]
[1765831834478,1.45696,85897.0,85896.0,0.90574202]
[1765831835282,0.00232836,85898.0,85897.0,0.68354]
[1765831835789,0.68212836,85898.0,85897.0,0.68354]
[1765831836493,0.00232836,85898.0,85897.0,0.68354]
[1765831836793,0.00432836,85898.0,85897.0,0.68354]
[1765831837091,0.00632836,85898.0,85897.0,0.68354]
[1765831837693,0.68612836,85898.0,85897.0,0.68354]
[1765831839281,0.00632836,85898.0,85897.0,0.68354]
[1765831839688,0.69777146,85898.0,85897.0,0.68354]
[1765831840295,0.34942836,85898.0,85897.0,0.68354]
[1765831840680,0.00632836,85898.0,85897.0,0.68354]
[1765831841581,0.68612836,85898.0,85897.0,0.68354]
[1765831843587,0.68612836,85898.0,85888.0,0.68371465]
[1765831843588,0.6798,85889.0,85888.0,0.68371465]
[1765831843886,0.3431,85889.0,85888.0,0.00017465]
[1765831844093,0.3431,85889.0,85888.0,0.68371465]
[1765831844677,0.6914435,85895.0,85894.0,0.68354]
[1765831845783,0.6924435,85895.0,85894.0,0.68354]
[1765831847486,0.3557435,85895.0,85894.0,0.68354]
[1765831847792,0.00232836,85898.0,85897.0,0.6951832]
[1765831847993,0.13508,85916.0,85904.0,0.9055922]
[1765831848494,0.13508,85916.0,85915.0,0.68354]
[1765831848798,0.0116397,85923.0,85912.0,0.21041]
[1765831848799,0.0116403,85919.0,85918.0,0.68354]
[1765831849485,0.3547403,85919.0,85918.0,0.68354]
[1765831850296,0.6914403,85919.0,85918.0,0.68354]
[1765831850690,0.0116403,85919.0,85918.0,0.68354]
[1765831850891,0.3557403,85919.0,85918.0,0.68354]
[1765831851292,0.3567403,85919.0,85918.0,0.68354]
[1765831851593,0.002,85919.0,85918.0,0.68354]
[1765831852191,0.00017465,85927.0,85926.0,0.68354]
[1765831853298,0.67997465,85927.0,85926.0,0.68354]
[1765831853800,0.68197465,85927.0,85926.0,0.68354]
[1765831854394,0.68397465,85927.0,85926.0,0.68354]
[1765831854590,0.00417465,85927.0,85926.0,0.68354]
[1765831855193,0.00232727,85938.0,85937.0,0.68354]
[1765831856394,0.00332727,85938.0,85937.0,0.68354]
[1765831856796,0.00232727,85938.0,85937.0,0.68354]
[1765831857101,0.00232727,85938.0,85937.0,0.68454]
[1765831860503,1.08212727,85938.0,85937.0,0.001]
[1765831862308,1.08312727,85938.0,85937.0,0.001]
[1765831862497,0.69098,85931.0,85930.0,2.0]
[1765831862692,1.42134,85931.0,85930.0,2.0]
[1765831863097,1.4329786,85931.0,85930.0,2.0]
[1765831863402,0.06227688,85944.0,85932.0,0.19549]
[1765831863695,0.21522278,85942.0,85941.0,0.19549]
[1765831863902,0.0116371,85942.0,85941.0,0.19549]
[1765831864705,0.0126371,85942.0,85941.0,0.19549]
[1765831864900,0.0116383,85933.0,85932.0,0.19549]
[1765831865500,0.21622278,85942.0,85941.0,0.19549]
[1765831865700,0.0126371,85942.0,85941.0,0.19549]
[1765831865896,0.0126371,85942.0,85941.0,0.89486]
[1765831866101,0.0126371,85942.0,85941.0,0.19549]
[1765831866903,0.0126371,85942.0,85932.0,0.19649]
[1765831866904,0.0116383,85933.0,85932.0,0.19649]
[1765831867106,0.0116383,85933.0,85932.0,0.19549]
[1765831867306,0.0116371,85942.0,85941.0,0.89486]
[1765831867508,0.73032,85943.0,85942.0,0.69937]
[1765831869313,0.00017454,85950.0,85949.0,0.69937]
[1765831869608,0.00017454,85950.0,85949.0,0.71129754]
[1765831870309,0.00017454,85950.0,85941.0,0.19549]
[1765831870310,0.0116371,85942.0,85941.0,0.89486]
[1765831870708,0.0116371,85942.0,85941.0,0.19549]
[1765831871210,0.00017454,85950.0,85949.0,0.69937]
[1765831871510,4.54e-06,85950.0,85949.0,0.69937]
[1765831871898,0.73048,85956.0,85955.0,0.69937]
[1765831872104,0.9448135,85969.0,85968.0,0.69937]
[1765831872308,1.2926935,85969.0,85968.0,0.69937]
[1765831873118,0.9448135,85969.0,85968.0,0.69937]
[1765831873415,0.6891745,85961.0,85960.0,0.00017454]
[1765831874413,0.6891745,85961.0,85960.0,0.89503454]
[1765831874708,0.6891745,85961.0,85960.0,0.00017454]
[1765831874923,0.67754,85946.0,85945.0,0.03129969]
[1765831875113,0.0116359,85951.0,85944.0,0.69937]
[1765831875114,0.6891767,85945.0,85944.0,0.69937]
[1765831875312,0.6891767,85945.0,85944.0,0.34814]
[1765831875506,0.6891767,85945.0,85944.0,0.69937]
[1765831876805,0.67754,85943.0,85942.0,0.03129969]
[1765831877005,0.67754,85939.0,85938.0,0.03129969]
[1765831877401,0.67754,85937.0,85936.0,0.00017454]